bitfinex/quotes_BTCUSD_20241119
["timestamp","ask_amount","ask_price","bid_price","bid_amount"]
[1732008974461,0.197625,91386.0,91385.0,0.84830834]
[1732008974462,0.01,91386.0,91385.0,0.84830834]
[1732008974667,0.019,91386.0,91385.0,0.84930834]
[1732008975337,0.046,91386.0,91385.0,0.84930834]
[1732008976184,0.048,91386.0,91385.0,0.73988134]
[1732008976411,0.046,91386.0,91385.0,0.73988134]
[1732008976842,0.046,91386.0,91385.0,0.84930834]
[1732008977741,0.046,91386.0,91385.0,0.73988134]
[1732008978863,0.046,91386.0,91385.0,0.84930834]
[1732008979085,0.046,91386.0,91385.0,0.73988134]
[1732008979514,0.048,91386.0,91385.0,0.73988134]
[1732008980837,0.046,91386.0,91385.0,0.84930834]
[1732008981482,0.036,91386.0,91385.0,0.84930834]
[1732008984838,0.036,91386.0,91385.0,0.59951603]
[1732008985511,0.036,91386.0,91385.0,0.64427251]
[1732008986815,0.009,91386.0,91385.0,0.64427251]
[1732008987023,0.0017092,91387.0,91386.0,0.109425]
[1732008987257,0.0017092,91387.0,91386.0,0.11161322]
[1732008988166,0.0017092,91387.0,91386.0,0.33067577]
[1732008988420,0.0017092,91387.0,91386.0,0.49190671]
[1732008988629,0.0017092,91387.0,91386.0,0.41148755]
[1732008989489,0.0017092,91387.0,91386.0,0.42448755]
[1732008989490,0.0027092,91387.0,91386.0,0.42448755]
[1732008990179,0.0017092,91387.0,91386.0,0.41148755]
[1732008990443,0.0017092,91387.0,91386.0,0.45448755]
[1732008990444,0.0047092,91387.0,91386.0,0.45448755]
[1732008990635,0.0027092,91387.0,91386.0,0.33348755]
[1732008990870,0.0027092,91387.0,91386.0,0.224425]
[1732008991092,0.0047092,91387.0,91386.0,0.252425]
[1732008992713,0.0047092,91387.0,91386.0,0.152425]
[1732008994838,0.0047092,91387.0,91386.0,0.043]
[1732008995307,0.0047092,91387.0,91386.0,0.152425]
[1732008995543,0.0047092,91387.0,91386.0,0.043]
[1732008995786,0.0147092,91387.0,91386.0,0.043]
[1732008996280,0.0147092,91387.0,91386.0,0.152425]
[1732008996527,0.0147092,91387.0,91386.0,0.043]
[1732008997225,0.0147092,91387.0,91386.0,0.152425]
[1732008997685,0.01475118,91387.0,91386.0,0.152425]
[1732009000404,0.01475118,91387.0,91386.0,0.1546133]
[1732009000619,0.01475118,91387.0,91386.0,0.152425]
[1732009001343,0.00475118,91387.0,91386.0,0.37148755]
[1732009001562,0.00475118,91387.0,91386.0,0.39448755]
[1732009001811,0.00475118,91387.0,91386.0,0.44028755]
[1732009002063,0.00475118,91387.0,91386.0,0.6196197]
[1732009002324,0.00475118,91387.0,91386.0,0.66863578]
[1732009002560,0.16341916,91412.0,91411.0,0.109396]
[1732009003068,8e-07,91413.0,91412.0,0.109394]
[1732009003537,8e-07,91413.0,91412.0,0.22064289]
[1732009003776,8e-07,91413.0,91412.0,0.44474548]
[1732009004006,8e-07,91413.0,91412.0,0.31845655]
[1732009004217,8e-07,91413.0,91412.0,0.34645655]
[1732009004675,8e-07,91413.0,91412.0,0.31845655]
[1732009004895,8e-07,91413.0,91412.0,0.34645655]
[1732009005121,8e-07,91413.0,91412.0,0.31845655]
[1732009005353,8e-07,91413.0,91412.0,0.33145655]
[1732009006024,8e-07,91413.0,91412.0,0.34145655]
[1732009006472,8e-07,91413.0,91412.0,0.36945655]
[1732009007338,8e-07,91413.0,91412.0,0.32845655]
[1732009007529,8e-07,91413.0,91412.0,0.35645655]
[1732009007764,0.0010008,91413.0,91412.0,0.34945655]
[1732009008246,8e-07,91413.0,91412.0,0.35645655]
[1732009008468,0.0010008,91413.0,91412.0,0.37845655]
[1732009008906,0.0010008,91413.0,91412.0,0.40145655]
[1732009012087,0.0010008,91413.0,91412.0,0.37845655]
[1732009014435,0.0010008,91413.0,91412.0,0.36845655]
[1732009014862,0.0010008,91413.0,91412.0,0.159394]
[1732009015072,0.0110008,91413.0,91412.0,0.159394]
[1732009015285,0.0010008,91413.0,91412.0,0.159394]
[1732009015496,0.1203938,91413.0,91412.0,0.05]
[1732009015731,0.0110008,91413.0,91412.0,0.05]
[1732009015991,0.0110008,91413.0,91412.0,0.159394]
[1732009016230,0.0010008,91413.0,91412.0,0.159394]
[1732009016483,0.0010008,91413.0,91412.0,0.131394]
[1732009016691,0.0110008,91413.0,91412.0,0.022]
[1732009016934,0.1193938,91413.0,91412.0,0.028]
[1732009017156,0.109397,91410.0,91401.0,0.16341916]
[1732009017346,0.002,91406.0,91405.0,0.109402]
[1732009017790,0.0490008,91413.0,91390.0,0.1]
[1732009017791,0.01,91403.0,91390.0,0.1]
[1732009017996,0.01,91403.0,91402.0,0.109406]
[1732009018224,0.01,91403.0,91402.0,0.209406]
[1732009018443,0.01,91403.0,91402.0,0.1]
[1732009019107,0.01,91403.0,91402.0,0.209406]
[1732009019564,0.01,91392.0,91389.0,0.218844]
[1732009019787,0.01,91392.0,91391.0,0.27283816]
[1732009020442,0.01,91392.0,91391.0,0.109419]
[1732009020855,0.01,91392.0,91391.0,0.209419]
[1732009021353,0.01,91392.0,91391.0,0.237419]
[1732009021572,0.011,91392.0,91391.0,0.148]
[1732009022195,0.011,91392.0,91391.0,0.048]
[1732009022613,0.011,91392.0,91391.0,0.257419]
[1732009022840,0.011,91392.0,91391.0,0.229419]
[1732009023052,0.01,91392.0,91391.0,0.209419]
[1732009023262,0.002,91392.0,91391.0,0.249419]
[1732009025707,0.012,91392.0,91391.0,0.249419]
[1732009026117,0.002,91392.0,91391.0,0.249419]
[1732009032102,0.0037092,91392.0,91391.0,0.249419]
[1732009034771,0.0137092,91392.0,91391.0,0.249419]
[1732009035649,0.0037092,91392.0,91391.0,0.249419]
[1732009039043,0.0137092,91392.0,91391.0,0.249419]
[1732009040179,0.0037092,91392.0,91391.0,0.249419]
[1732009040432,0.0137092,91392.0,91391.0,0.249419]
[1732009040630,0.0037092,91392.0,91391.0,0.249419]
[1732009040806,0.0137092,91392.0,91391.0,0.249419]
[1732009045882,0.0037092,91392.0,91391.0,0.249419]
[1732009046129,0.0137092,91392.0,91391.0,0.249419]
[1732009048362,0.0037092,91392.0,91391.0,0.249419]
[1732009049928,0.0027092,91392.0,91391.0,0.237419]
[1732009050058,0.0017092,91392.0,91391.0,0.209419]
[1732009050691,0.0017092,91392.0,91391.0,0.237419]
[1732009051155,0.01,91411.0,91391.0,0.25806255]
[1732009051356,0.01,91411.0,91410.0,0.109397]
[1732009051532,0.01,91404.0,91394.0,0.1]
[1732009051750,0.01,91404.0,91403.0,0.209405]
[1732009053419,0.01,91404.0,91403.0,0.211405]
[1732009053857,0.01,91404.0,91403.0,0.212405]
[1732009054245,0.01,91404.0,91403.0,0.211405]
[1732009054478,0.01,91404.0,91403.0,0.212405]
[1732009054722,0.01,91404.0,91403.0,0.209405]
[1732009054928,0.016,91404.0,91403.0,0.211405]
[1732009055606,8e-07,91413.0,91403.0,0.211405]
[1732009055607,0.01,91405.0,91404.0,0.209404]
[1732009056708,0.016,91405.0,91404.0,0.211404]
[1732009057397,0.016,91405.0,91404.0,0.212404]
[1732009058047,0.016,91405.0,91404.0,0.003]
[1732009058268,0.205603,91405.0,91404.0,0.003]
[1732009058491,0.37416555,91405.0,91404.0,0.003]
[1732009059576,0.37216555,91405.0,91404.0,0.003]
[1732009059860,0.37416555,91405.0,91404.0,0.003]
[1732009060266,0.37216555,91405.0,91404.0,0.003]
[1732009061175,0.203603,91405.0,91404.0,0.003]
[1732009061382,0.0962,91405.0,91404.0,0.003]
[1732009062048,0.205603,91405.0,91404.0,0.003]
[1732009063596,0.0962,91405.0,91404.0,0.003]
[1732009063804,0.0942,91405.0,91404.0,0.003]
[1732009064012,0.0942,91405.0,91404.0,0.112404]
[1732009064013,0.016,91405.0,91404.0,0.112404]
[1732009064219,0.016,91405.0,91404.0,0.003]
[1732009064423,0.125403,91405.0,91404.0,0.003]
[1732009064874,0.016,91405.0,91404.0,0.003]
[1732009066581,0.016,91405.0,91404.0,0.112404]
[1732009067468,0.0177092,91405.0,91404.0,0.112404]
[1732009071416,0.0117092,91405.0,91404.0,0.110404]
[1732009071832,0.0257092,91405.0,91404.0,0.111404]
[1732009073233,0.0117092,91405.0,91404.0,0.109404]
[1732009073467,0.0127092,91405.0,91404.0,0.145404]
[1732009073705,0.0127092,91405.0,91404.0,0.122404]
[1732009073964,0.0117092,91405.0,91404.0,0.110404]
[1732009074194,0.0377092,91405.0,91404.0,0.112404]
[1732009078763,0.0377092,91405.0,91404.0,0.003]
[1732009078991,0.0377092,91405.0,91404.0,0.112404]
[1732009079182,0.03543647,91405.0,91404.0,0.003]
[1732009079503,0.14483947,91405.0,91404.0,0.003]
[1732009079724,0.03543647,91405.0,91404.0,0.003]
[1732009079947,0.03714567,91405.0,91404.0,0.003]
[1732009080395,0.03914567,91405.0,91404.0,0.112404]
[1732009080623,0.03914567,91405.0,91404.0,0.003]
[1732009080854,0.03714567,91405.0,91404.0,0.112404]
[1732009083416,0.0277092,91405.0,91404.0,0.212404]
[1732009084045,0.03714567,91405.0,91404.0,0.31074954]
[1732009084274,0.03714567,91405.0,91404.0,0.212404]
[1732009085901,0.03714567,91405.0,91404.0,0.003]
[1732009086124,0.03714567,91405.0,91404.0,0.103]
[1732009086574,0.03714567,91405.0,91404.0,0.003]
[1732009086841,0.23184867,91405.0,91404.0,0.003]
[1732009087084,0.36091122,91405.0,91404.0,0.003]
[1732009088222,0.36091122,91405.0,91404.0,0.002]
[1732009088671,0.36091122,91405.0,91404.0,0.004]
[1732009089151,0.33491122,91405.0,91404.0,0.002]
[1732009089370,0.35191122,91405.0,91404.0,0.002]
[1732009089601,0.24084867,91405.0,91404.0,0.002]
[1732009089820,0.21384867,91405.0,91404.0,0.002]
[1732009090064,0.00943647,91399.0,91398.0,0.10941]
[1732009091633,0.02043647,91399.0,91398.0,0.11041]
[1732009092798,0.04743647,91399.0,91398.0,0.11041]
[1732009096068,0.04743647,91399.0,91398.0,0.001]
[1732009096069,0.04943647,91399.0,91398.0,0.001]
[1732009096283,0.04743647,91399.0,91398.0,0.110411]
[1732009096757,0.04743647,91399.0,91398.0,0.001]
[1732009097459,0.15884647,91399.0,91398.0,0.001]
[1732009098425,0.04743647,91399.0,91398.0,0.001]
[1732009098634,0.04743647,91399.0,91398.0,0.110411]
[1732009098845,0.04743647,91399.0,91398.0,0.001]
[1732009099309,0.15884647,91399.0,91398.0,0.001]
[1732009100444,0.15684647,91399.0,91398.0,0.001]
[1732009101098,0.109417,91394.0,91389.0,0.0100859]
[1732009101304,0.00943647,91390.0,91389.0,0.109422]
[1732009101728,0.00943647,91390.0,91387.0,0.2197026]
[1732009101944,0.00943647,91388.0,91387.0,0.1102786]
[1732009102409,0.00943647,91389.0,91388.0,0.109423]
[1732009103259,0.00943647,91389.0,91388.0,0.1]
[1732009103483,0.00943647,91389.0,91388.0,0.209423]
[1732009104328,0.01043647,91389.0,91388.0,0.237423]
[1732009104824,0.01343647,91389.0,91388.0,0.239772]
[1732009105676,0.01543647,91389.0,91388.0,0.239772]
[1732009105879,0.01343647,91389.0,91388.0,0.239772]
[1732009107625,0.004,91389.0,91388.0,0.239772]
[1732009107847,0.004,91389.0,91388.0,0.59443714]
[1732009108788,0.001,91389.0,91388.0,0.59143714]
[1732009108998,0.004,91389.0,91388.0,0.59443714]
[1732009109668,0.003,91389.0,91388.0,0.44233455]
[1732009110116,0.003,91389.0,91388.0,0.47033455]
[1732009111437,0.003,91389.0,91388.0,0.56859924]
[1732009111884,0.003,91389.0,91388.0,0.361272]
[1732009112102,0.003,91389.0,91388.0,0.45953669]
[1732009113583,0.003,91389.0,91388.0,0.45953808]
[1732009114264,0.003,91389.0,91388.0,0.361272]
[1732009114503,0.003,91389.0,91388.0,0.239772]
[1732009114711,0.003,91389.0,91388.0,0.140423]
[1732009114712,0.01243647,91389.0,91388.0,0.140423]
[1732009115628,0.01243647,91389.0,91388.0,0.1412773]
[1732009119720,0.01443647,91389.0,91388.0,0.0318543]
[1732009120360,0.01243647,91389.0,91388.0,0.1412773]
[1732009121263,0.01243647,91389.0,91388.0,0.0318543]
[1732009121488,0.12385847,91389.0,91388.0,0.0318543]
[1732009121896,0.01443647,91389.0,91388.0,0.0318543]
[1732009122342,0.01243647,91389.0,91388.0,0.0318543]
[1732009122568,0.01243647,91389.0,91388.0,0.0038543]
[1732009122781,0.01143647,91389.0,91388.0,0.0008543]
[1732009123048,0.01343647,91389.0,91388.0,0.0188543]
[1732009123472,0.01143647,91389.0,91388.0,0.0288543]
[1732009123678,0.02343647,91389.0,91388.0,0.0018543]
[1732009124120,0.13285847,91389.0,91388.0,0.0298543]
[1732009124569,0.02343647,91389.0,91388.0,0.0298543]
[1732009125003,0.26192102,91389.0,91388.0,0.0298543]
[1732009125889,0.00943647,91389.0,91388.0,0.0008543]
[1732009126100,0.00943647,91389.0,91388.0,0.0048543]
[1732009126339,0.03943647,91389.0,91388.0,0.1142773]
[1732009126776,0.03943647,91389.0,91388.0,0.0048543]
[1732009126998,0.01314547,91389.0,91388.0,0.0008543]
[1732009127222,0.04314547,91389.0,91388.0,0.0048543]
[1732009127680,0.01314547,91389.0,91388.0,0.0008543]
[1732009127887,0.01414547,91389.0,91388.0,0.0028543]
[1732009128105,0.13356747,91389.0,91388.0,0.0028543]
[1732009128316,0.13556747,91389.0,91388.0,0.0028543]
[1732009128941,0.16256747,91389.0,91388.0,0.0038543]
[1732009129370,0.13556747,91389.0,91388.0,0.0028543]
[1732009129603,0.25463002,91389.0,91388.0,0.0038543]
[1732009129810,0.26863002,91389.0,91388.0,0.0018543]
[1732009130024,0.27363002,91389.0,91388.0,0.0038543]
[1732009130247,0.25663002,91389.0,91388.0,0.0028543]
[1732009130495,0.25663002,91389.0,91388.0,0.0018543]
[1732009130496,0.27863002,91389.0,91388.0,0.0018543]
[1732009130763,0.27863002,91389.0,91388.0,0.0038543]
[1732009130764,0.28363002,91389.0,91388.0,0.0038543]
[1732009134697,0.41123002,91389.0,91388.0,0.0038543]
[1732009135661,0.51123002,91389.0,91388.0,0.0038543]
[1732009136119,0.51323002,91389.0,91388.0,0.0038543]
[1732009136596,1.06732254,91389.0,91388.0,0.0038543]
[1732009136827,1.11100865,91389.0,91388.0,0.0038543]
[1732009137091,0.91617691,91389.0,91388.0,0.0038543]
[1732009137563,0.13089347,91360.0,91359.0,0.16341916]
[1732009137794,0.23995602,91360.0,91359.0,0.16341916]
[1732009138033,0.002,91356.0,91355.0,0.109463]
[1732009138259,0.00943647,91356.0,91349.0,0.16341916]
[1732009138510,0.00943647,91350.0,91349.0,0.27288916]
[1732009138755,0.00943647,91350.0,91349.0,0.10947]
[1732009139653,0.00943647,91350.0,91349.0,0.11047]
[1732009139893,0.012,91356.0,91355.0,0.109463]
[1732009140148,0.16341916,91366.0,91365.0,0.109451]
[1732009140149,0.17285563,91366.0,91365.0,0.109451]
[1732009140375,0.17285563,91366.0,91365.0,0.189951]
[1732009140605,0.00943647,91371.0,91370.0,0.109445]
[1732009141508,0.00943647,91372.0,91371.0,0.109443]
[1732009142418,0.00943647,91373.0,91372.0,0.109442]
[1732009143282,0.00943647,91383.0,91371.0,0.001]
[1732009143548,0.00943647,91383.0,91373.0,0.1]
[1732009143759,0.00943647,91385.0,91384.0,0.109428]
[1732009144439,0.001709,91389.0,91388.0,0.109423]
[1732009144440,0.01114547,91389.0,91388.0,0.109423]
[1732009145776,0.01114547,91389.0,91388.0,0.30157372]
[1732009145777,0.028709,91389.0,91388.0,0.30157372]
[1732009145985,0.028709,91389.0,91388.0,0.29938555]
[1732009146254,0.055709,91389.0,91388.0,0.42338555]
[1732009147343,0.028709,91389.0,91388.0,0.42238555]
[1732009147560,0.003709,91389.0,91388.0,0.48171675]
[1732009147779,0.005709,91389.0,91388.0,0.50971675]
[1732009148201,0.003709,91389.0,91388.0,0.48171675]
[1732009148422,0.005709,91389.0,91388.0,0.50971675]
[1732009152832,0.005709,91389.0,91388.0,0.51971675]
[1732009153521,0.005709,91389.0,91388.0,0.64438287]
[1732009153791,0.0017092,91405.0,91404.0,0.341404]
[1732009153996,0.0017092,91405.0,91404.0,0.45046655]
[1732009154681,0.0017092,91405.0,91404.0,0.48346655]
[1732009154903,0.0017092,91405.0,91404.0,0.48403008]
[1732009155113,0.0037092,91405.0,91404.0,0.50103008]
[1732009155763,0.16512736,91422.0,91404.0,0.41962608]
[1732009155971,0.16512736,91422.0,91412.0,0.49016012]
[1732009156187,0.16512736,91422.0,91412.0,0.59922267]
[1732009156434,0.0017082,91422.0,91412.0,0.59922267]
[1732009156678,0.0017082,91422.0,91412.0,0.69704642]
[1732009157123,0.0017082,91422.0,91412.0,0.59922267]
[1732009157335,0.0017082,91422.0,91412.0,0.7947327]
[1732009157554,0.0017082,91422.0,91412.0,0.59922267]
[1732009157761,0.0017082,91422.0,91412.0,0.7738572]
[1732009158194,0.0017082,91422.0,91412.0,0.7458572]
[1732009158406,0.0017082,91422.0,91412.0,0.69692849]
[1732009158632,0.0017082,91422.0,91412.0,0.72492849]
[1732009159078,0.0017082,91422.0,91412.0,0.69692849]
[1732009159286,0.0017082,91422.0,91412.0,0.59922267]
[1732009159516,0.0017082,91422.0,91412.0,0.62722267]
[1732009160166,0.0017082,91422.0,91412.0,0.65522267]
[1732009161256,0.0017082,91422.0,91412.0,0.62722267]
[1732009161734,0.0017082,91422.0,91412.0,0.65522267]
[1732009164200,0.001669,91422.0,91421.0,0.36705012]
[1732009164414,0.001669,91422.0,91421.0,0.47611267]
[1732009164865,0.001669,91422.0,91421.0,0.55271267]
[1732009165743,0.001669,91422.0,91421.0,0.59571267]
[1732009166196,0.001669,91422.0,91421.0,0.58071267]
[1732009166631,0.001669,91422.0,91421.0,0.61637324]
[1732009166874,0.001669,91422.0,91421.0,0.58837324]
[1732009167344,0.001669,91422.0,91421.0,0.61637324]
[1732009167806,0.001669,91422.0,91421.0,0.64437324]
[1732009168019,0.001669,91422.0,91421.0,0.61637324]
[1732009168245,0.001669,91422.0,91421.0,0.64437324]
[1732009169287,0.001669,91422.0,91421.0,0.64670657]
[1732009170928,0.001669,91422.0,91421.0,0.60871267]
[1732009172291,0.001669,91422.0,91421.0,0.65268285]
[1732009172749,0.001669,91422.0,91421.0,0.64268285]
[1732009172998,0.001669,91422.0,91421.0,0.56551932]
[1732009173234,0.001669,91422.0,91421.0,0.57551932]
[1732009173933,0.001669,91422.0,91421.0,0.45141673]
[1732009174640,0.001669,91422.0,91421.0,0.57551932]
[1732009175910,0.001669,91422.0,91421.0,0.41841673]
[1732009176119,0.001669,91422.0,91421.0,0.39041673]
[1732009176481,0.001669,91422.0,91421.0,0.15335418]
[1732009176687,0.09210547,91422.0,91421.0,0.109384]
[1732009177415,0.09210547,91422.0,91421.0,0.137384]
[1732009178059,0.09210547,91422.0,91421.0,0.109384]
[1732009178268,0.09210547,91422.0,91421.0,0.143384]
[1732009178468,0.09210547,91422.0,91421.0,0.115384]
[1732009178842,0.09210547,91422.0,91421.0,0.143384]
[1732009179676,0.01110547,91422.0,91421.0,0.143384]
[1732009180687,0.01110547,91422.0,91421.0,0.034]
[1732009181783,0.01110547,91422.0,91421.0,0.028]
[1732009182215,0.01110547,91422.0,91421.0,0.002]
[1732009182448,0.01110547,91422.0,91421.0,0.004]
[1732009182703,0.12048747,91422.0,91421.0,0.004]
[1732009183148,0.20268747,91422.0,91421.0,0.004]
[1732009183614,0.25168747,91422.0,91421.0,0.004]
[1732009183844,0.25968747,91422.0,91421.0,0.004]
[1732009184062,0.27168747,91422.0,91421.0,0.004]
[1732009184282,0.38075002,91422.0,91421.0,0.004]
[1732009185806,0.38075002,91422.0,91421.0,0.0048542]
[1732009186226,0.14030547,91422.0,91421.0,0.1142382]
[1732009186429,0.01110547,91422.0,91421.0,0.1142382]
[1732009198032,0.001669,91422.0,91421.0,0.1142382]
[1732009200029,0.09010547,91422.0,91421.0,0.1142382]
[1732009200297,0.22116802,91422.0,91421.0,0.0048542]
[1732009200535,0.33055002,91422.0,91421.0,0.0048542]
[1732009201431,0.14083447,91409.0,91408.0,0.16341916]
[1732009201661,0.14049902,91409.0,91408.0,0.16341916]
[1732009201894,0.03143647,91406.0,91405.0,0.1111106]
[1732009202114,0.14049902,91406.0,91405.0,0.1111106]
[1732009202339,0.14049902,91406.0,91405.0,0.0017086]
[1732009202555,0.21659902,91406.0,91405.0,0.0017086]
[1732009203461,0.24359902,91406.0,91405.0,0.0037086]
[1732009203707,0.24359902,91406.0,91405.0,0.1131116]
[1732009203936,0.24359902,91406.0,91405.0,0.0037086]
[1732009204155,0.27059902,91406.0,91405.0,0.0047086]
[1732009205276,0.38000102,91406.0,91405.0,0.0047086]
[1732009205508,0.27059902,91406.0,91405.0,0.0047086]
[1732009206412,0.38000102,91406.0,91405.0,0.0047086]
[1732009206647,0.38000102,91406.0,91378.0,0.218868]
[1732009206648,0.21806047,91387.0,91378.0,0.218868]
[1732009206878,0.37462302,91387.0,91378.0,0.218868]
[1732009207097,0.002,91379.0,91378.0,0.218868]
[1732009207325,0.002,91379.0,91378.0,0.109435]
[1732009207567,0.002,91379.0,91372.0,0.218885]
[1732009207795,0.002,91379.0,91373.0,0.218883]
[1732009208052,0.002,91374.0,91373.0,0.328324]
[1732009208898,0.002,91374.0,91373.0,0.109441]
[1732009210191,0.027,91374.0,91373.0,0.111441]
[1732009210620,0.039,91374.0,91373.0,0.111441]
[1732009210827,0.041,91374.0,91373.0,0.111441]
[1732009211040,0.039,91374.0,91373.0,0.111441]
[1732009211243,0.041,91374.0,91373.0,0.111441]
[1732009211901,0.25750255,91374.0,91373.0,0.002]
[1732009212140,0.25950255,91374.0,91373.0,0.002]
[1732009212780,0.002,91372.0,91356.0,0.38234116]
[1732009213080,0.002,91372.0,91356.0,0.16341916]
[1732009213081,0.22050455,91372.0,91356.0,0.16341916]
[1732009213292,0.22050455,91372.0,91340.0,0.0108539]
[1732009213293,0.44910455,91372.0,91353.0,0.16341916]
[1732009213930,0.44910455,91372.0,91371.0,0.0028545]
[1732009213931,0.47610455,91372.0,91371.0,0.0028545]
[1732009214146,0.50010455,91372.0,91371.0,0.0028545]
[1732009214384,0.49910455,91372.0,91371.0,0.0028545]
[1732009215260,0.49910455,91372.0,91371.0,0.0008545]
[1732009215261,0.47210455,91372.0,91371.0,0.0008545]
[1732009215480,0.49910455,91372.0,91371.0,0.0018545]
[1732009215723,0.52610455,91372.0,91371.0,0.0018545]
[1732009216172,0.49910455,91372.0,91371.0,0.0008545]
[1732009216842,0.50110455,91372.0,91371.0,0.0008545]
[1732009217075,0.50110455,91372.0,91353.0,0.16341916]
[1732009217076,0.111464,91354.0,91353.0,0.16341916]
[1732009217312,0.22052655,91354.0,91353.0,0.16341916]
[1732009217528,0.22052655,91354.0,91344.0,0.109476]
[1732009217529,0.109467,91352.0,91344.0,0.109476]
[1732009217742,0.002,91344.0,91343.0,0.49184916]
[1732009218178,0.002,91344.0,91343.0,0.32843]
[1732009219263,0.002,91345.0,91344.0,0.109476]
[1732009219512,0.16341916,91356.0,91341.0,0.16341916]
[1732009219513,0.002,91356.0,91341.0,0.16341916]
[1732009219728,0.002,91356.0,91340.0,0.0008539]
[1732009219729,0.002,91357.0,91356.0,0.109461]
[1732009219946,0.002,91357.0,91343.0,0.12410259]
[1732009219947,0.029,91344.0,91343.0,0.109477]
[1732009220152,0.027,91344.0,91343.0,0.329431]
[1732009220597,0.027,91345.0,91343.0,0.218954]
[1732009221097,0.218891,91370.0,91343.0,0.218954]
[1732009221098,0.002,91356.0,91355.0,0.109463]
[1732009221340,0.027,91357.0,91356.0,0.109461]
[1732009221777,0.027,91357.0,91356.0,0.119461]
[1732009222241,0.002,91371.0,91367.0,0.109448]
[1732009222463,0.002,91376.0,91375.0,0.109439]
[1732009222686,0.002,91377.0,91373.0,0.21888]
[1732009222931,0.002,91380.0,91374.0,0.21888]
[1732009223174,0.002,91380.0,91361.0,0.21891]
[1732009223175,0.002,91382.0,91381.0,0.109431]
[1732009223443,0.0755,91402.0,91385.0,0.109425]
[1732009223444,0.10942,91391.0,91385.0,0.109425]
[1732009223658,0.218831,91395.0,91382.0,0.218859]
[1732009223870,0.12410259,91397.0,91363.0,0.16341916]
[1732009223871,0.027,91376.0,91363.0,0.17341916]
[1732009224085,0.029,91377.0,91376.0,0.109437]
[1732009225138,0.027,91377.0,91376.0,0.109437]
[1732009225782,0.027,91382.0,91381.0,0.109431]
[1732009226226,0.002,91385.0,91384.0,0.109428]
[1732009227108,0.002,91385.0,91376.0,0.001]
[1732009227109,0.002,91385.0,91382.0,0.437722]
[1732009227379,0.002,91381.0,91380.0,0.109433]
[1732009227641,0.002,91382.0,91381.0,0.109431]
[1732009229386,0.024,91382.0,91381.0,0.109431]
[1732009229605,0.022,91382.0,91381.0,0.109431]
[1732009229837,0.049,91382.0,91381.0,0.120431]
[1732009230063,0.049,91382.0,91381.0,0.22949355]
[1732009231230,0.049,91382.0,91381.0,0.110431]
[1732009232335,0.049,91382.0,91381.0,0.310431]
[1732009232974,0.051,91382.0,91381.0,0.310431]
[1732009233602,0.051,91382.0,91381.0,0.201]
[1732009234037,0.16043,91382.0,91381.0,0.201]
[1732009234262,0.13843,91382.0,91381.0,0.201]
[1732009234473,0.056,91382.0,91381.0,0.201]
[1732009234696,0.029,91382.0,91381.0,0.2]
[1732009235151,0.16306255,91382.0,91381.0,0.2]
[1732009235374,0.27449255,91382.0,91381.0,0.2]
[1732009235615,0.24749255,91382.0,91381.0,0.00766885]
[1732009235818,0.27449255,91382.0,91381.0,0.00766885]
[1732009236558,0.24749255,91382.0,91381.0,0.00766885]
[1732009237215,0.22049255,91382.0,91381.0,0.00766885]
[1732009237442,0.24749255,91382.0,91381.0,0.00766885]
[1732009238095,0.056,91382.0,91381.0,0.00766885]
[1732009238312,0.056,91382.0,91381.0,0.11709985]
[1732009238313,0.054,91382.0,91381.0,0.11709985]
[1732009238729,0.054,91382.0,91381.0,0.00766885]
[1732009238962,0.056,91382.0,91381.0,0.00766885]
[1732009239171,0.056,91382.0,91381.0,0.11709985]
[1732009239380,0.029,91382.0,91381.0,0.11709985]
[1732009240005,0.056,91382.0,91381.0,0.11709985]
[1732009240443,0.029,91382.0,91381.0,0.11709985]
[1732009240655,0.056,91382.0,91381.0,0.11709985]
[1732009241079,0.029,91382.0,91381.0,0.11709985]
[1732009241529,0.056,91382.0,91381.0,0.11709985]
[1732009242404,0.056,91382.0,91381.0,0.00766885]
[1732009242896,0.16543,91382.0,91381.0,0.00766885]
[1732009243339,0.056,91382.0,91381.0,0.00766885]
[1732009243543,0.056,91382.0,91381.0,0.11709985]
[1732009244440,0.0577094,91382.0,91381.0,0.00766885]
[1732009244665,0.1671394,91382.0,91381.0,0.00766885]
[1732009244876,0.0577094,91382.0,91381.0,0.00766885]
[1732009245087,0.0557094,91382.0,91381.0,0.00766885]
[1732009246894,0.0577094,91382.0,91381.0,0.11709985]
[1732009247545,0.0577094,91382.0,91381.0,0.00766885]
[1732009247772,0.0577094,91382.0,91381.0,0.11709985]
[1732009248414,0.0557094,91382.0,91381.0,0.11709985]
[1732009248653,0.0577094,91382.0,91381.0,0.00766885]
[1732009249083,0.1651394,91382.0,91381.0,0.00766885]
[1732009249562,0.40030454,91382.0,91381.0,0.00766885]
[1732009250697,0.52330454,91382.0,91381.0,0.00766885]
[1732009250929,0.56666049,91382.0,91381.0,0.00766885]
[1732009251580,0.53766049,91382.0,91381.0,0.00766885]
[1732009251787,0.53966049,91382.0,91381.0,0.00766885]
[1732009252003,0.56666049,91382.0,91381.0,0.00766885]
[1732009252223,0.56666049,91382.0,91363.0,0.16341916]
[1732009252224,0.68116246,91382.0,91363.0,0.16341916]
[1732009252438,0.23554459,91372.0,91363.0,0.16341916]
[1732009252646,0.34460714,91372.0,91363.0,0.16341916]
[1732009253899,0.37160714,91372.0,91363.0,0.16341916]
[1732009254243,0.39860714,91372.0,91363.0,0.16341916]
[1732009255589,0.39860714,91372.0,91355.0,0.109462]
[1732009255792,0.39860714,91372.0,91353.0,0.16341916]
[1732009256220,0.39860714,91372.0,91354.0,0.109463]
[1732009256423,0.39860714,91372.0,91355.0,0.109462]
[1732009256662,0.39660714,91372.0,91355.0,0.109462]
[1732009256872,0.41893114,91372.0,91353.0,0.16341916]
[1732009257083,0.41893114,91372.0,91355.0,0.109462]
[1732009257311,0.42093114,91372.0,91355.0,0.218925]
[1732009257515,0.42093114,91372.0,91356.0,0.109461]
[1732009257957,0.42093114,91372.0,91357.0,0.109459]